[Event "44th Chess Olympiad Women 2022"]
[Site "Chennai"]
[Date "2022.08.08"]
[Round "10.23"]
[White "Castrillon Gomez, Melissa"]
[Black "Ryjanova, Julia"]
[Result "1/2-1/2"]
[WhiteElo "2230"]
[BlackElo "2284"]
[Annotator "NA RC"]
[PlyCount "64"]
[EventDate "2022.??.??"]
[TimeControl "60"]

1. d4 {[%emt 0:00:10]} Nf6 {[%emt 0:00:09]} 2. c4 {[%emt 0:00:08]} e6 {[%emt 0:
00:00]} 3. g3 {[%emt 0:00:04]} Bb4+ {[%emt 0:00:51]} 4. Nd2 {[%emt 0:02:23]}
O-O {[%emt 0:16:22]} 5. Bg2 {[%emt 0:00:33]} d5 {[%emt 0:07:21]} 6. Ngf3 {
[%emt 0:06:29]} c5 {[%emt 0:10:25]} 7. O-O {[%emt 0:10:22]} cxd4 {[%emt 0:00:
00]} 8. cxd5 {[%emt 0:02:33]} Qxd5 {[%emt 0:13:42]} 9. Nb3 {[%emt 0:01:50]} d3
{[%emt 0:00:40]} 10. exd3 {[%emt 0:03:18]} Nc6 {[%emt 0:05:20]} 11. Bg5 {
[%emt 0:17:41]} Be7 {[%emt 0:01:58]} 12. d4 {[%emt 0:06:50]} Qd8 {[%emt 0:00:
00]} 13. Ne5 {[%emt 0:05:43]} Nb4 {[%emt 0:01:42]} 14. Nc5 {[%emt 0:00:44]}
Nbd5 {[%emt 0:01:07]} 15. Qb3 {[%emt 0:02:27]} Qb6 {[%emt 0:08:23]} 16. Bxd5 {
[%emt 0:09:04]} exd5 {[%emt 0:03:08]} 17. Bxf6 {[%emt 0:03:29]} Qxb3 {[%emt 0:
00:00]} 18. axb3 {[%emt 0:00:49]} gxf6 {[%emt 0:05:14]} 19. Ned7 {[%emt 0:00:
00]} Bxd7 {[%emt 0:05:38]} 20. Nxd7 {[%emt 0:00:06]} Rfd8 {[%emt 0:00:14]} 21.
Nc5 {[%emt 0:00:36]} b6 {[%emt 0:03:18]} 22. Nd3 {[%emt 0:00:17]} Bd6 {[%emt 0:
00:00]} 23. Ra6 {[%emt 0:03:30]} Rdc8 {[%emt 0:02:02]} 24. Rfa1 {[%emt 0:00:32]
} Rc2 {[%emt 0:00:39]} 25. Rxb6 {[%emt 0:00:31]} axb6 {[%emt 0:00:23]} 26.
Rxa8+ {[%emt 0:00:03]} Kg7 {[%emt 0:00:10]} 27. Ra6 {[%emt 0:05:57]} Rd2 {
[%emt 0:00:29]} 28. Rxb6 {[%emt 0:00:54]} Rxd3 {[%emt 0:00:57]} 29. Rxd6 {
[%emt 0:00:09]} Rxd4 {[%emt 0:00:06]} 30. Kf1 {[%emt 0:01:36]} Rd2 {[%emt 0:00:
00]} 31. b4 {[%emt 0:00:13]} Rxb2 {[%emt 0:00:11]} 32. Rxd5 {[%emt 0:00:05]}
Rxb4 {[%emt 0:00:06]} 1/2-1/2

[Event "44th Chess Olympiad Women 2022"]
[Site "Chennai"]
[Date "2022.08.08"]
[Round "10.23"]
[White "Nguyen, Thu Giang"]
[Black "Rodriguez Rueda, Paula Andrea"]
[Result "1-0"]
[WhiteElo "2119"]
[BlackElo "2237"]
[Annotator "NA RC"]
[PlyCount "83"]
[EventDate "2022.??.??"]
[TimeControl "60"]

1. e4 {[%emt 0:00:07]} c5 {[%emt 0:00:13]} 2. Nf3 {[%emt 0:01:00]} e6 {[%emt 0:
00:00]} 3. c3 {[%emt 0:00:52]} d5 {[%emt 0:00:36]} 4. exd5 {[%emt 0:03:29]}
Qxd5 {[%emt 0:00:14]} 5. d4 {[%emt 0:01:30]} cxd4 {[%emt 0:03:18]} 6. cxd4 {
[%emt 0:05:05]} Nf6 {[%emt 0:00:57]} 7. Nc3 {[%emt 0:02:05]} Qd8 {[%emt 0:00:
00]} 8. Bc4 {[%emt 0:02:43]} Be7 {[%emt 0:02:33]} 9. O-O {[%emt 0:01:58]} O-O {
[%emt 0:00:21]} 10. Ne5 {[%emt 0:04:33]} Nc6 {[%emt 0:01:56]} 11. Nxc6 {
[%emt 0:08:52]} bxc6 {[%emt 0:00:04]} 12. Bf4 {[%emt 0:00:36]} Qb6 {[%emt 0:00:
00]} 13. Na4 {[%emt 0:07:26]} Qa5 {[%emt 0:00:05]} 14. a3 {[%emt 0:03:50]} Nd5
{[%emt 0:17:16]} 15. b4 {[%emt 0:04:18]} Qd8 {[%emt 0:00:17]} 16. Be5 {[%emt 0:
00:00]} a5 {[%emt 0:03:28]} 17. Bxd5 {[%emt 0:02:15]} cxd5 {[%emt 0:14:18]} 18.
b5 {[%emt 0:02:30]} Bd6 {[%emt 0:06:56]} 19. Qe2 {[%emt 0:05:45]} f6 {[%emt 0:
00:00]} 20. Bxd6 {[%emt 0:06:04]} Qxd6 {[%emt 0:00:01]} 21. f4 {[%emt 0:01:02]}
Re8 {[%emt 0:03:37]} 22. Nc5 {[%emt 0:02:42]} a4 {[%emt 0:01:18]} 23. Rab1 {
[%emt 0:01:23]} Rb8 {[%emt 0:12:54]} 24. Rb4 {[%emt 0:04:54]} e5 {[%emt 0:00:
00]} 25. fxe5 {[%emt 0:03:47]} fxe5 {[%emt 0:00:19]} 26. Qf2 {[%emt 0:02:41]}
Be6 {[%emt 0:02:09]} 27. dxe5 {[%emt 0:07:55]} Qxe5 {[%emt 0:00:13]} 28. Re1 {
[%emt 0:00:49]} Qd6 {[%emt 0:01:08]} 29. Qd4 {[%emt 0:01:07]} Bd7 {[%emt 0:00:
00]} 30. Reb1 {[%emt 0:00:19]} Bf5 {[%emt 0:00:13]} 31. Rf1 {[%emt 0:01:12]}
Qe5 {[%emt 0:01:55]} 32. Qxe5 {[%emt 0:03:36]} Rxe5 {[%emt 0:00:00]} 33. g4 {
[%emt 0:00:23]} Bc8 {[%emt 0:01:33]} 34. b6 {[%emt 0:00:41]} h5 {[%emt 0:01:02]
} 35. b7 {[%emt 0:00:57]} Bxg4 {[%emt 0:00:10]} 36. Na6 {[%emt 0:00:39]} Rxb7 {
[%emt 0:01:07]} 37. Rxb7 {[%emt 0:00:04]} Be2 {[%emt 0:00:03]} 38. Rb8+ {
[%emt 0:00:10]} Kh7 {[%emt 0:00:01]} 39. Rff8 {[%emt 0:00:16]} d4 {[%emt 0:00:
00]} 40. Nb4 {[%emt 0:00:21]} Re3 {[%emt 0:00:32]} 41. Nd5 {[%emt 0:02:59]} Re4
{[%emt 0:02:06]} 42. Nf4 {[%emt 0:00:26]} 1-0

[Event "44th Chess Olympiad Women 2022"]
[Site "Chennai"]
[Date "2022.08.08"]
[Round "10.23"]
[White "Zhang, Jilin"]
[Black "Chirivi C, Jenny Astrid"]
[Result "1-0"]
[WhiteElo "2212"]
[BlackElo "2157"]
[Annotator "RC"]
[PlyCount "127"]
[EventDate "2022.??.??"]
[TimeControl "60"]

1. e4 {[%emt 0:00:02]} c5 {[%emt 0:00:09]} 2. Nf3 {[%emt 0:00:07]} e6 {[%emt 0:
00:00]} 3. d4 {[%emt 0:00:07]} cxd4 {[%emt 0:00:08]} 4. Nxd4 {[%emt 0:00:04]}
a6 {[%emt 0:00:11]} 5. Bd3 {[%emt 0:00:53]} Qc7 {[%emt 0:00:39]} 6. O-O {
[%emt 0:01:08]} Nf6 {[%emt 0:00:30]} 7. Qe2 {[%emt 0:00:49]} d6 {[%emt 0:00:27]
} 8. c4 {[%emt 0:00:40]} g6 {[%emt 0:00:24]} 9. Nc3 {[%emt 0:00:25]} Bg7 {
[%emt 0:01:30]} 10. Be3 {[%emt 0:00:37]} O-O {[%emt 0:00:52]} 11. Rac1 {
[%emt 0:00:17]} Nc6 {[%emt 0:08:26]} 12. h3 {[%emt 0:02:37]} Nd7 {[%emt 0:00:
00]} 13. Nb3 {[%emt 0:06:24]} Nce5 {[%emt 0:07:19]} 14. Nd2 {[%emt 0:17:09]}
Nxd3 {[%emt 0:04:26]} 15. Qxd3 {[%emt 0:00:05]} Ne5 {[%emt 0:06:20]} 16. Qe2 {
[%emt 0:03:06]} Bd7 {[%emt 0:12:06]} 17. b3 {[%emt 0:01:54]} Rac8 {[%emt 0:00:
00]} 18. Bd4 {[%emt 0:05:17]} Qb8 {[%emt 0:11:38]} 19. f4 {[%emt 0:04:06]} Nc6
{[%emt 0:15:42]} 20. Bxg7 {[%emt 0:00:11]} Kxg7 {[%emt 0:00:04]} 21. Nf3 {
[%emt 0:01:23]} Ne7 {[%emt 0:02:12]} 22. Qd2 {[%emt 0:04:00]} Rfd8 {[%emt 0:00:
00]} 23. Qd4+ {[%emt 0:07:35]} f6 {[%emt 0:02:49]} 24. e5 {[%emt 0:02:52]} dxe5
{[%emt 0:02:53]} 25. fxe5 {[%emt 0:00:08]} f5 {[%emt 0:01:30]} 26. Qh4 {
[%emt 0:02:52]} Ng8 {[%emt 0:00:59]} 27. Ne4 {[%emt 0:01:31]} h6 {[%emt 0:00:
00]} 28. Nd6 {[%emt 0:01:43]} Qa7+ {[%emt 0:03:47]} 29. Kh1 {[%emt 0:01:34]}
Rb8 {[%emt 0:00:39]} 30. Rcd1 {[%emt 0:00:53]} b5 {[%emt 0:00:28]} 31. c5 {
[%emt 0:00:34]} Qc7 {[%emt 0:02:45]} 32. Nd4 {[%emt 0:05:01]} Qxc5 {[%emt 0:00:
00]} 33. Nb7 {[%emt 0:01:09]} Rxb7 {[%emt 0:01:40]} 34. Qxd8 {[%emt 0:00:07]}
Qc7 {[%emt 0:00:26]} 35. Qxc7 {[%emt 0:06:37]} Rxc7 {[%emt 0:00:04]} 36. Rc1 {
[%emt 0:00:21]} Rb7 {[%emt 0:00:14]} 37. Nc6 {[%emt 0:03:55]} Kf8 {[%emt 0:00:
00]} 38. Rfd1 {[%emt 0:02:09]} Ke8 {[%emt 0:00:26]} 39. Nb4 {[%emt 0:01:35]}
Ra7 {[%emt 0:00:39]} 40. Rd6 {[%emt 0:04:54]} a5 {[%emt 0:00:17]} 41. Na6 {
[%emt 0:31:53]} a4 {[%emt 0:11:47]} 42. Nb8 {[%emt 0:00:00]} axb3 {[%emt 0:00:
00]} 43. axb3 {[%emt 0:00:00]} Ne7 {[%emt 0:02:19]} 44. Nxd7 {[%emt 0:00:00]}
Rxd7 {[%emt 0:00:09]} 45. Rxe6 {[%emt 0:00:00]} Kf7 {[%emt 0:03:46]} 46. Rf6+ {
[%emt 0:00:00]} Kg7 {[%emt 0:00:10]} 47. Rd6 {[%emt 0:00:00]} Rb7 {[%emt 0:00:
00]} 48. Rcd1 {[%emt 0:00:00]} g5 {[%emt 0:02:09]} 49. Rd7 {[%emt 0:00:00]}
Rxd7 {[%emt 0:00:31]} 50. Rxd7 {[%emt 0:00:00]} Kf7 {[%emt 0:00:08]} 51. Rd6 {
[%emt 0:00:00]} h5 {[%emt 0:02:14]} 52. Rf6+ {[%emt 0:00:00]} Kg7 {[%emt 0:00:
00]} 53. Rb6 {[%emt 0:00:00]} Kf7 {[%emt 0:00:37]} 54. h4 {[%emt 0:00:00]} gxh4
{[%emt 0:01:33]} 55. Kh2 {[%emt 0:00:00]} b4 {[%emt 0:01:54]} 56. Rxb4 {
[%emt 0:00:00]} Ke6 {[%emt 0:00:13]} 57. Rxh4 {[%emt 0:00:00]} Kxe5 {[%emt 0:
00:00]} 58. Rxh5 {[%emt 0:00:00]} Nd5 {[%emt 0:02:15]} 59. Rh8 {[%emt 0:00:00]}
Kf4 {[%emt 0:02:28]} 60. b4 {[%emt 0:00:00]} Nc3 {[%emt 0:00:45]} 61. Rc8 {
[%emt 0:00:00]} Nb5 {[%emt 0:00:40]} 62. Rc5 {[%emt 0:00:00]} Nd6 {[%emt 0:00:
00]} 63. b5 {[%emt 0:00:00]} Ke4 {[%emt 0:00:05]} 64. b6 {[%emt 0:23:46]} 1-0

[Event "44th Chess Olympiad Women 2022"]
[Site "Chennai"]
[Date "2022.08.08"]
[Round "10.24"]
[White "Barbier, Astrid"]
[Black "Sanchez Tobar, Francisca Valenti"]
[Result "1/2-1/2"]
[WhiteElo "1879"]
[BlackElo "1839"]
[Annotator "NA RC"]
[PlyCount "63"]
[EventDate "2022.??.??"]
[TimeControl "60"]

1. e4 {[%emt 0:00:02]} e5 {[%emt 0:00:05]} 2. Nf3 {[%emt 0:00:04]} Nc6 {
[%emt 0:00:05]} 3. Bb5 {[%emt 0:00:04]} a6 {[%emt 0:00:08]} 4. Ba4 {[%emt 0:00:
00]} Nf6 {[%emt 0:00:08]} 5. d3 {[%emt 0:00:10]} b5 {[%emt 0:00:07]} 6. Bb3 {
[%emt 0:00:04]} Bc5 {[%emt 0:00:09]} 7. c3 {[%emt 0:00:35]} d6 {[%emt 0:00:25]}
8. O-O {[%emt 0:01:04]} h6 {[%emt 0:00:27]} 9. a4 {[%emt 0:02:50]} Rb8 {
[%emt 0:03:17]} 10. h3 {[%emt 0:16:07]} O-O {[%emt 0:06:32]} 11. Re1 {[%emt 0:
00:00]} Bb6 {[%emt 0:04:02]} 12. Nbd2 {[%emt 0:09:42]} Ne7 {[%emt 0:02:41]} 13.
Nf1 {[%emt 0:05:04]} Ng6 {[%emt 0:04:03]} 14. Ng3 {[%emt 0:04:19]} c5 {[%emt 0:
00:00]} 15. d4 {[%emt 0:12:20]} Qc7 {[%emt 0:00:37]} 16. Be3 {[%emt 0:08:23]}
Ba5 {[%emt 0:02:25]} 17. axb5 {[%emt 0:04:31]} cxd4 {[%emt 0:03:34]} 18. Bd2 {
[%emt 0:01:52]} dxc3 {[%emt 0:00:58]} 19. Bxc3 {[%emt 0:00:50]} Bxc3 {[%emt 0:
00:00]} 20. bxc3 {[%emt 0:00:04]} Rxb5 {[%emt 0:05:54]} 21. Re3 {[%emt 0:03:55]
} Nf4 {[%emt 0:05:07]} 22. Rc1 {[%emt 0:02:25]} Be6 {[%emt 0:07:28]} 23. Bxe6 {
[%emt 0:01:24]} fxe6 {[%emt 0:00:27]} 24. c4 {[%emt 0:02:00]} Rb4 {[%emt 0:00:
00]} 25. Ra3 {[%emt 0:02:14]} Rxc4 {[%emt 0:16:42]} 26. Rxc4 {[%emt 0:00:57]}
Qxc4 {[%emt 0:00:02]} 27. Qxd6 {[%emt 0:01:35]} Nxe4 {[%emt 0:00:56]} 28. Qxa6
{[%emt 0:04:56]} Qxa6 {[%emt 0:01:26]} 29. Rxa6 {[%emt 0:00:06]} Nxg3 {[%emt 0:
00:00]} 30. fxg3 {[%emt 0:00:12]} Nxh3+ {[%emt 0:00:27]} 31. Kh2 {[%emt 0:00:
00]} e4 {[%emt 0:02:06]} 32. Kxh3 {[%emt 0:01:11]} 1/2-1/2

[Event "44th Chess Olympiad Women 2022"]
[Site "Chennai"]
[Date "2022.08.08"]
[Round "10.24"]
[White "De Rycke, Tyani"]
[Black "Reyes Jara, Paula"]
[Result "1/2-1/2"]
[WhiteElo "1994"]
[BlackElo "1858"]
[Annotator "NA RC"]
[PlyCount "62"]
[EventDate "2022.??.??"]
[TimeControl "60"]

1. e4 {[%emt 0:00:02]} e5 {[%emt 0:00:07]} 2. Nf3 {[%emt 0:00:05]} Nc6 {
[%emt 0:00:13]} 3. Bc4 {[%emt 0:00:05]} Bc5 {[%emt 0:00:10]} 4. d3 {[%emt 0:00:
00]} Nf6 {[%emt 0:00:20]} 5. Be3 {[%emt 0:00:07]} Bb6 {[%emt 0:00:53]} 6. Nc3 {
[%emt 0:00:09]} d6 {[%emt 0:01:32]} 7. a4 {[%emt 0:00:08]} Bg4 {[%emt 0:02:49]}
8. h3 {[%emt 0:00:09]} Be6 {[%emt 0:00:06]} 9. Nd5 {[%emt 0:03:49]} Bxe3 {
[%emt 0:08:30]} 10. fxe3 {[%emt 0:12:16]} O-O {[%emt 0:04:09]} 11. O-O {
[%emt 0:05:07]} Bxd5 {[%emt 0:01:06]} 12. Bxd5 {[%emt 0:02:29]} Nxd5 {[%emt 0:
00:00]} 13. exd5 {[%emt 0:00:06]} Ne7 {[%emt 0:00:05]} 14. c4 {[%emt 0:00:31]}
a5 {[%emt 0:06:17]} 15. d4 {[%emt 0:01:19]} exd4 {[%emt 0:03:03]} 16. Qxd4 {
[%emt 0:01:06]} Ng6 {[%emt 0:02:14]} 17. h4 {[%emt 0:05:13]} Qe7 {[%emt 0:00:
00]} 18. h5 {[%emt 0:05:34]} Ne5 {[%emt 0:00:31]} 19. h6 {[%emt 0:08:45]} g6 {
[%emt 0:13:02]} 20. Nd2 {[%emt 0:09:40]} Rae8 {[%emt 0:08:22]} 21. Rf4 {
[%emt 0:03:17]} f6 {[%emt 0:03:59]} 22. Raf1 {[%emt 0:02:35]} Rf7 {[%emt 0:00:
00]} 23. e4 {[%emt 0:08:54]} Qf8 {[%emt 0:09:01]} 24. Rh4 {[%emt 0:05:32]} Qe7
{[%emt 0:00:06]} 25. b3 {[%emt 0:03:27]} b6 {[%emt 0:01:26]} 26. Qe3 {[%emt 0:
00:00]} Nd7 {[%emt 0:04:52]} 27. Nf3 {[%emt 0:03:29]} Nc5 {[%emt 0:01:58]} 28.
Nd4 {[%emt 0:01:03]} Qe5 {[%emt 0:01:45]} 29. Nf3 {[%emt 0:04:10]} Qe7 {
[%emt 0:00:38]} 30. Nd4 {[%emt 0:01:16]} Qe5 {[%emt 0:00:02]} 31. Nf3 {[%emt 0:
00:00]} Qe7 {[%emt 0:00:36]} 1/2-1/2

[Event "44th Chess Olympiad Women 2022"]
[Site "Chennai"]
[Date "2022.08.08"]
[Round "10.24"]
[White "Gomez Barrera, Javiera Belen"]
[Black "Goossens, Hanne"]
[Result "1-0"]
[WhiteElo "2210"]
[BlackElo "2159"]
[Annotator "NA RC"]
[PlyCount "83"]
[EventDate "2022.??.??"]
[TimeControl "60"]

1. e4 {[%emt 0:00:07]} e5 {[%emt 0:00:04]} 2. Nf3 {[%emt 0:00:13]} Nf6 {
[%emt 0:00:06]} 3. Nxe5 {[%emt 0:00:45]} d6 {[%emt 0:00:26]} 4. Nf3 {[%emt 0:
00:00]} Nxe4 {[%emt 0:00:11]} 5. d4 {[%emt 0:00:07]} d5 {[%emt 0:00:55]} 6. Bd3
{[%emt 0:01:04]} Bd6 {[%emt 0:00:14]} 7. O-O {[%emt 0:02:01]} O-O {[%emt 0:00:
00]} 8. c4 {[%emt 0:04:34]} c6 {[%emt 0:00:38]} 9. Qb3 {[%emt 0:00:14]} Na6 {
[%emt 0:16:47]} 10. cxd5 {[%emt 0:42:43]} cxd5 {[%emt 0:00:40]} 11. Nc3 {
[%emt 0:02:56]} Be6 {[%emt 0:12:57]} 12. a3 {[%emt 0:05:03]} Nc7 {[%emt 0:00:
00]} 13. Qc2 {[%emt 0:08:10]} f5 {[%emt 0:04:50]} 14. Re1 {[%emt 0:07:05]} Rc8
{[%emt 0:06:57]} 15. Qd1 {[%emt 0:06:02]} Qf6 {[%emt 0:03:54]} 16. Bd2 {
[%emt 0:08:02]} Bf7 {[%emt 0:03:10]} 17. Ne5 {[%emt 0:07:05]} Nxf2 {[%emt 0:00:
00]} 18. Kxf2 {[%emt 0:00:51]} Qh4+ {[%emt 0:00:20]} 19. Kf1 {[%emt 0:02:05]}
Qxd4 {[%emt 0:00:28]} 20. Re3 {[%emt 0:03:58]} Qf4+ {[%emt 0:03:21]} 21. Nf3 {
[%emt 0:00:00]} Bh5 {[%emt 0:02:27]} 22. Re6 {[%emt 0:00:00]} Qxf3+ {[%emt 0:
00:00]} 23. Qxf3 {[%emt 0:00:00]} Bxf3 {[%emt 0:00:36]} 24. Rxd6 {[%emt 0:00:
00]} Be4 {[%emt 0:01:02]} 25. Bxe4 {[%emt 0:00:00]} fxe4+ {[%emt 0:03:16]} 26.
Ke2 {[%emt 0:00:00]} Rfd8 {[%emt 0:00:48]} 27. Rxd8+ {[%emt 0:00:00]} Rxd8 {
[%emt 0:00:05]} 28. Bg5 {[%emt 0:00:10]} Rd7 {[%emt 0:01:16]} 29. Rd1 {[%emt 0:
00:00]} h6 {[%emt 0:01:13]} 30. Be3 {[%emt 0:00:45]} Kh7 {[%emt 0:00:38]} 31.
Nxe4 {[%emt 0:00:44]} Re7 {[%emt 0:00:16]} 32. Nc3 {[%emt 0:00:46]} Rd7 {
[%emt 0:00:34]} 33. g3 {[%emt 0:00:33]} Kg6 {[%emt 0:00:23]} 34. Bf4 {[%emt 0:
00:00]} d4 {[%emt 0:00:23]} 35. Bxc7 {[%emt 0:00:35]} Re7+ {[%emt 0:00:30]} 36.
Ne4 {[%emt 0:00:24]} Rxe4+ {[%emt 0:00:12]} 37. Kd3 {[%emt 0:00:38]} Re3+ {
[%emt 0:00:35]} 38. Kxd4 {[%emt 0:00:31]} Re2 {[%emt 0:00:12]} 39. b4 {[%emt 0:
00:00]} Rxh2 {[%emt 0:00:11]} 40. Bb8 {[%emt 0:00:33]} Ra2 {[%emt 0:00:28]} 41.
Rd3 {[%emt 0:00:42]} a6 {[%emt 0:00:17]} 42. Ke4 {[%emt 0:01:41]} 1-0

[Event "44th Chess Olympiad Women 2022"]
[Site "Chennai"]
[Date "2022.08.08"]
[Round "10.24"]
[White "Toro Pradenas, Maria Jose"]
[Black "Barbier, Wiebke"]
[Result "1-0"]
[WhiteElo "1945"]
[BlackElo "1970"]
[Annotator "NA RC"]
[PlyCount "61"]
[EventDate "2022.??.??"]
[TimeControl "60"]

1. e4 {[%emt 0:00:02]} d6 {[%emt 0:00:03]} 2. d4 {[%emt 0:00:11]} Nf6 {[%emt 0:
00:00]} 3. Nc3 {[%emt 0:00:04]} e5 {[%emt 0:00:02]} 4. Nf3 {[%emt 0:00:09]}
Nbd7 {[%emt 0:00:06]} 5. Bc4 {[%emt 0:00:40]} Be7 {[%emt 0:00:06]} 6. a4 {
[%emt 0:00:16]} O-O {[%emt 0:00:06]} 7. O-O {[%emt 0:00:34]} c6 {[%emt 0:00:05]
} 8. a5 {[%emt 0:00:15]} h6 {[%emt 0:00:14]} 9. Re1 {[%emt 0:06:11]} Re8 {
[%emt 0:01:06]} 10. h3 {[%emt 0:02:21]} exd4 {[%emt 0:02:29]} 11. Nxd4 {
[%emt 0:03:09]} Bf8 {[%emt 0:00:59]} 12. Bf4 {[%emt 0:11:42]} Ne5 {[%emt 0:00:
00]} 13. Bb3 {[%emt 0:01:50]} Bd7 {[%emt 0:02:32]} 14. Bg3 {[%emt 0:04:20]} Qc7
{[%emt 0:08:27]} 15. f4 {[%emt 0:09:24]} Ng6 {[%emt 0:00:42]} 16. Qf3 {[%emt 0:
00:00]} c5 {[%emt 0:12:25]} 17. Ndb5 {[%emt 0:08:49]} Bxb5 {[%emt 0:19:06]} 18.
Nxb5 {[%emt 0:00:11]} Qc6 {[%emt 0:00:17]} 19. Nc3 {[%emt 0:00:14]} b5 {
[%emt 0:09:02]} 20. axb6 {[%emt 0:01:48]} axb6 {[%emt 0:00:43]} 21. Ba4 {
[%emt 0:03:27]} Rxa4 {[%emt 0:00:11]} 22. Rxa4 {[%emt 0:00:04]} b5 {[%emt 0:00:
00]} 23. Raa1 {[%emt 0:00:28]} b4 {[%emt 0:00:32]} 24. Nd5 {[%emt 0:00:20]} Nd7
{[%emt 0:04:51]} 25. e5 {[%emt 0:12:21]} dxe5 {[%emt 0:15:26]} 26. f5 {[%emt 0:
00:00]} e4 {[%emt 0:00:18]} 27. Rxe4 {[%emt 0:00:12]} Nge5 {[%emt 0:00:55]} 28.
Rxe5 {[%emt 0:02:21]} Rxe5 {[%emt 0:01:08]} 29. Ne7+ {[%emt 0:00:15]} Rxe7 {
[%emt 0:02:57]} 30. Qxc6 {[%emt 0:00:05]} Nf6 {[%emt 0:01:17]} 31. Bd6 {
[%emt 0:00:53]} 1-0

[Event "44th Chess Olympiad Women 2022"]
[Site "Chennai"]
[Date "2022.08.08"]
[Round "10.25"]
[White "Aydin, Gulenay"]
[Black "Ortiz Verdezoto, Anahi"]
[Result "1/2-1/2"]
[WhiteElo "2100"]
[BlackElo "2046"]
[Annotator "NA RC"]
[PlyCount "41"]
[EventDate "2022.??.??"]
[TimeControl "60"]

1. e4 {[%emt 0:00:02]} e5 {[%emt 0:00:40]} 2. Nf3 {[%emt 0:00:08]} Nc6 {
[%emt 0:00:33]} 3. Nc3 {[%emt 0:00:08]} Nf6 {[%emt 0:00:29]} 4. Bb5 {[%emt 0:
00:00]} Nd4 {[%emt 0:00:26]} 5. O-O {[%emt 0:00:30]} Nxb5 {[%emt 0:03:19]} 6.
Nxb5 {[%emt 0:00:07]} c6 {[%emt 0:05:02]} 7. Nc3 {[%emt 0:00:10]} d6 {[%emt 0:
00:00]} 8. d4 {[%emt 0:01:13]} Qc7 {[%emt 0:00:20]} 9. Bg5 {[%emt 0:05:26]} Be7
{[%emt 0:00:09]} 10. h3 {[%emt 0:01:25]} O-O {[%emt 0:05:42]} 11. a4 {[%emt 0:
00:00]} a5 {[%emt 0:04:51]} 12. Re1 {[%emt 0:04:45]} Re8 {[%emt 0:00:10]} 13.
Qd3 {[%emt 0:07:22]} h6 {[%emt 0:05:55]} 14. Bh4 {[%emt 0:02:56]} Nh5 {[%emt 0:
00:00]} 15. Bxe7 {[%emt 0:02:38]} Nf4 {[%emt 0:06:01]} 16. Qd2 {[%emt 0:09:13]}
Qxe7 {[%emt 0:00:25]} 17. Ne2 {[%emt 0:01:35]} Ng6 {[%emt 0:04:36]} 18. Ng3 {
[%emt 0:05:22]} Nf4 {[%emt 0:03:39]} 19. Ne2 {[%emt 0:14:27]} Ng6 {[%emt 0:00:
00]} 20. Ng3 {[%emt 0:08:41]} Nf4 {[%emt 0:05:59]} 21. Ne2 {[%emt 0:07:07]}
1/2-1/2

[Event "44th Chess Olympiad Women 2022"]
[Site "Chennai"]
[Date "2022.08.08"]
[Round "10.25"]
[White "Heredia Serrano, Carla"]
[Black "Atalik, Ekaterina"]
[Result "0-1"]
[WhiteElo "2090"]
[BlackElo "2422"]
[Annotator "RC"]
[PlyCount "86"]
[EventDate "2022.??.??"]
[TimeControl "60"]

1. e4 {[%emt 0:00:34]} e5 {[%emt 0:00:05]} 2. Nf3 {[%emt 0:00:13]} Nc6 {
[%emt 0:00:11]} 3. Bb5 {[%emt 0:00:14]} a6 {[%emt 0:00:28]} 4. Bxc6 {[%emt 0:
00:00]} dxc6 {[%emt 0:00:09]} 5. Nc3 {[%emt 0:00:24]} Qf6 {[%emt 0:04:04]} 6.
d4 {[%emt 0:04:25]} exd4 {[%emt 0:00:15]} 7. Bg5 {[%emt 0:07:31]} Qd6 {[%emt 0:
00:00]} 8. Qxd4 {[%emt 0:10:42]} Qxd4 {[%emt 0:00:52]} 9. Nxd4 {[%emt 0:00:41]}
Bd7 {[%emt 0:01:43]} 10. O-O-O {[%emt 0:02:20]} f6 {[%emt 0:01:56]} 11. Bf4 {
[%emt 0:00:19]} O-O-O {[%emt 0:00:39]} 12. Rd2 {[%emt 0:22:47]} Bb4 {[%emt 0:
00:00]} 13. Nde2 {[%emt 0:09:54]} Ne7 {[%emt 0:02:40]} 14. f3 {[%emt 0:02:38]}
Rhe8 {[%emt 0:05:29]} 15. a3 {[%emt 0:17:07]} Bc5 {[%emt 0:01:59]} 16. Rd3 {
[%emt 0:01:42]} Ng6 {[%emt 0:05:17]} 17. Be3 {[%emt 0:02:54]} Bd6 {[%emt 0:00:
00]} 18. Na4 {[%emt 0:00:10]} Be6 {[%emt 0:02:35]} 19. Rhd1 {[%emt 0:08:12]}
Ne5 {[%emt 0:06:55]} 20. Rc3 {[%emt 0:00:17]} Bc4 {[%emt 0:05:13]} 21. Ng3 {
[%emt 0:01:49]} Bb5 {[%emt 0:01:52]} 22. Rd4 {[%emt 0:04:15]} Nd7 {[%emt 0:00:
00]} 23. Rxd6 {[%emt 0:01:38]} cxd6 {[%emt 0:00:29]} 24. Nb6+ {[%emt 0:00:08]}
Nxb6 {[%emt 0:00:21]} 25. Bxb6 {[%emt 0:00:04]} Rd7 {[%emt 0:00:15]} 26. b3 {
[%emt 0:00:49]} c5 {[%emt 0:04:14]} 27. b4 {[%emt 0:00:05]} g6 {[%emt 0:03:25]}
28. bxc5 {[%emt 0:00:57]} dxc5 {[%emt 0:04:23]} 29. Rxc5+ {[%emt 0:00:11]} Kb8
{[%emt 0:01:28]} 30. c4 {[%emt 0:00:17]} Re6 {[%emt 0:04:29]} 31. Ba5 {[%emt 0:
00:00]} Ba4 {[%emt 0:03:10]} 32. Rd5 {[%emt 0:00:12]} Rc6 {[%emt 0:01:38]} 33.
Bc3 {[%emt 0:01:11]} Rxd5 {[%emt 0:02:12]} 34. exd5 {[%emt 0:00:01]} Rxc4 {
[%emt 0:00:07]} 35. Kd2 {[%emt 0:00:08]} f5 {[%emt 0:00:41]} 36. Kd3 {[%emt 0:
00:00]} Bb5 {[%emt 0:00:42]} 37. Be5+ {[%emt 0:00:52]} Kc8 {[%emt 0:00:42]} 38.
Ke3 {[%emt 0:00:21]} Rc2 {[%emt 0:00:37]} 39. Nh1 {[%emt 0:01:19]} Re2+ {
[%emt 0:01:12]} 40. Kf4 {[%emt 0:00:31]} Rxg2 {[%emt 0:00:12]} 41. Ng3 {
[%emt 0:02:47]} Rxh2 {[%emt 0:01:14]} 42. Kg5 {[%emt 0:00:05]} Kd7 {[%emt 0:00:
00]} 43. Kf6 {[%emt 0:00:54]} Rh3 {[%emt 0:01:41]} 0-1